{"text_format":"1","workbook":"xlsx","n_sheets":2,"sheets":["بطائق1","اول"],"not_rendered":{"charts":0,"images":1,"macros":1,"external_links":0,"defined_names":11,"comments":0,"pivot_tables":0},"unopened":[],"bounds":{"document_bytes":16777216,"sheet_cells":100000,"rows_first":2000,"rows_last":500,"rows_between":2000,"halvings":0,"cell_chars":16384,"cell_head_chars":4096},"cells_cut":0,"cells_raw":0,"read":"whole","date_system":"1900"}

{"sheet":"بطائق1","index":0,"n_rows":423,"n_cols":28,"rows_kept":423,"cut":false,"hidden":false,"merged":[[12,10,13,16],[48,1,48,2],[5,0,5,5],[21,1,21,5],[22,1,22,2],[23,1,23,2],[46,1,46,5],[47,1,47,2],[30,0,30,5]]}
[null,null,null,null,null,null,null,null,null,null,null,null,null,5,2,"نتيجة الفصل الدراسي الاول 2015/2014"]
[null,null,null,null,null,null,null,null,null,null,null,null,null,null,2,"نتيجة اعمال السنة 2015/2014"]
[]
[]
[null,null,null,null,null,null,null,null,null,null,null,null,null,null,null,null,null,null,null,null,null,null,null,null,"كل المطلوبات ادناه اختيارية","بدون تفقيط الكسر","مذكر","مؤنث"]
["بطاقة رصد درجات الطالب للفصل الأول للعام الدراسي 2023/2022",null,null,null,null,null,null,null,null,1,null,null,null,null,null,null,null,null,null,null,null,null,null,null,"جنس العملة",0,0,1]
[null,"رقم الطالب/",{"$f":"IF($G$7=\"\",\"\",INDEX(fulrang1,$G$7,1))","v":3},null,"الصف","الاول أساسي",3,null,".",3]
[null,"اسم الطالب/",{"$f":"IF($G$7=\"\",\"\",INDEX(fulrang1,$G$7,2))","v":"جميل"},null,"الفترة",null,null,null,null,5,null,"عدد الطلبة",null,null,null,null,null,null,null,null,null,null,null,null,"اسم العملة مفرد","درجة","درجة","درجة"]
[null,"المــــــادة","الفصل الأول","الفصل الثاني","المجمــــــوع","المجموع كتابة",null,null,null,7,null,{"$f":"(اول!A6)","v":8},null,null,null,null,null,null,null,null,null,null,null,null,"اسم العملة جمع","درجات","درجات","درجات"]
[null,"قـــــران",{"$f":"IF($G$7=\"\",\"\",INDEX(fulrang1,$G$7,3))","v":0},{"$f":"IF($G$7=\"\",\"\",INDEX(fulrang1,$G$7,4))","v":0},{"$f":"IF($G$7=\"\",\"\",INDEX(fulrang1,$G$7,5))","v":0},{"$f":"kh_TextNum($E10,$AB$6,$AB$8,$AB$9,AB$10,$AB$11,$AB$12,$AB$13)","v":"صفر درجة"},null,null,null,9,"من",null,"الى",null,null,null,null,null,null,null,null,null,null,null,"اسم العملة الكسرية"]
[null,"إسلامية",{"$f":"IF($G$7=\"\",\"\",INDEX(fulrang1,$G$7,6))","v":0},{"$f":"IF($G$7=\"\",\"\",INDEX(fulrang1,$G$7,7))","v":0},{"$f":"IF($G$7=\"\",\"\",INDEX(fulrang1,$G$7,8))","v":0},"صفر درجة",null,null,null,11,1,null,5,null,null,null,null,null,null,null,null,null,null,null,"طول الكسر",null,null,0]
[null,"عربــــي",{"$f":"IF($G$7=\"\",\"\",INDEX(fulrang1,$G$7,9))","v":0},{"$f":"IF($G$7=\"\",\"\",INDEX(fulrang1,$G$7,10))","v":0},{"$f":"IF($G$7=\"\",\"\",INDEX(fulrang1,$G$7,11))","v":0},"صفر درجة",null,null,null,13,null,null,null,null,null,null,null,null,null,null,null,null,null,null,"اسم العملة الكسرية جمع",null,"درجات","درجات"]
[null,"انجليـزي",{"$f":"IF($G$7=\"\",\"\",INDEX(fulrang1,$G$7,12))","v":0},{"$f":"IF($G$7=\"\",\"\",INDEX(fulrang1,$G$7,13))","v":0},{"$f":"IF($G$7=\"\",\"\",INDEX(fulrang1,$G$7,14))","v":0},"صفر درجة",null,null,null,15,"اريد طباعة البطائق من 1 الى 5 في ملف pdf واحد",null,null,null,null,null,null,null,null,null,null,null,null,null,"جنس عملة الكسر",null,1,0]
[null,"رياضيات",{"$f":"IF($G$7=\"\",\"\",INDEX(fulrang1,$G$7,15))","v":0},{"$f":"IF($G$7=\"\",\"\",INDEX(fulrang1,$G$7,16))","v":0},{"$f":"IF($G$7=\"\",\"\",INDEX(fulrang1,$G$7,17))","v":0},"صفر درجة"]
[null,"اجتماعيات",{"$f":"IF($G$7=\"\",\"\",INDEX(fulrang1,$G$7,18))","v":0},{"$f":"IF($G7=\"\",\"\",INDEX(fulrang1,$G7,19))","v":0},{"$f":"IF($G$7=\"\",\"\",INDEX(fulrang1,$G$7,20))","v":0},"صفر درجة"]
[null,"علـــــوم",{"$f":"IF($G$7=\"\",\"\",INDEX(fulrang1,$G$7,21))","v":0},{"$f":"IF($G$7=\"\",\"\",INDEX(fulrang1,$G$7,22))","v":0},{"$f":"IF($G$7=\"\",\"\",INDEX(fulrang1,$G$7,23))","v":0},"صفر درجة"]
[null,"الحاسوب",{"$f":"IF($G$7=\"\",\"\",INDEX(fulrang1,$G$7,24))","v":0},{"$f":"IF($G$7=\"\",\"\",INDEX(fulrang1,$G$7,25))","v":0},{"$f":"IF($G$7=\"\",\"\",INDEX(fulrang1,$G$7,26))","v":0},"صفر درجة",null,null,null,17]
[null,"الفنيـــة",{"$f":"IF($G$7=\"\",\"\",INDEX(fulrang1,$G$7,27))","v":0},{"$f":"IF($G$7=\"\",\"\",INDEX(fulrang1,$G$7,28))","v":0},{"$f":"IF($G$7=\"\",\"\",INDEX(fulrang1,$G$7,29))","v":0},"صفر درجة",null,null,null,21]
[null,"الرياضيــة",{"$f":"IF($G$7=\"\",\"\",INDEX(fulrang1,$G$7,30))","v":0},{"$f":"IF($G$7=\"\",\"\",INDEX(fulrang1,$G$7,31))","v":0},{"$f":"IF($G$7=\"\",\"\",INDEX(fulrang1,$G$7,32))","v":0},"صفر درجة",null,null,null,23]
[null,null,null,null,null,null,null,null,null,25]
[null,"النتيجــة",{"$f":"IF($G$7=\"\",\"\",INDEX(fulrang1,$G$7,34))","v":" راسب  "},"المجمـــــوع",{"$f":"IF($G$7=\"\",\"\",INDEX(fulrang1,$G$7,33))","v":0},"صفر درجة",null,null,null,27]
[null,"يعتمد ،،،،",null,null,null,null,null,null,null,29]
[null,"رئيس الكنترول",null,null,null,"مدير المدرسة",null,null,null,31]
[null,null,null,null,null,null,null,null,null,33]
[null,null,null,null,null,null,null,null,null,35]
[null,null,null,null,null,null,null,null,null,41]
[null,null,null,null,null,null,null,null,null,43]
[null,null,null,null,null,null,null,null,null,45]
[null,null,null,null,null,null,null,null,null,47]
[null,null,null,null,null,null,null,null,null,49]
["بطاقة رصد درجات الطالب للفصل الأول للعام الدراسي 2023/2022",null,null,null,null,null,null,null,null,51]
[null,"رقم الطالب/",{"$f":"IF($G32=\"\",\"\",INDEX(fulrang1,$G32,1))","v":4},null,"الصف","الاول أساسي",{"$f":"G7+1","v":4},null,null,53]
[null,"اسم الطالب/",{"$f":"IF($G32=\"\",\"\",INDEX(fulrang1,$G32,2))","v":"حامد"},null,"الفترة",null,null,null,null,55]
[null,"المادة","الفصل الأول","الفصل الثاني","المجمــــــوع","المجموع كتابة",null,null,null,57]
[null,"قـــــران",{"$f":"IF($G$32=\"\",\"\",INDEX(fulrang1,$G$32,3))","v":0},{"$f":"IF($G$32=\"\",\"\",INDEX(fulrang1,$G$32,4))","v":0},{"$f":"IF($G$32=\"\",\"\",INDEX(fulrang1,$G$32,5))","v":0},{"$f":"kh_TextNum($E35,$AB$6,$AB$8,$AB$9,AB$10,$AB$11,$AB$12,$AB$13)","v":"صفر درجة"},null,null,null,59]
[null,"إسلامية",{"$f":"IF($G$32=\"\",\"\",INDEX(fulrang1,$G$32,6))","v":0},{"$f":"IF($G$32=\"\",\"\",INDEX(fulrang1,$G$32,7))","v":0},{"$f":"IF($G$32=\"\",\"\",INDEX(fulrang1,$G$32,8))","v":0},{"$f":"kh_TextNum($E36,$AB$6,$AB$8,$AB$9,AB$10,$AB$11,$AB$12,$AB$13)","v":"صفر درجة"},null,null,null,61]
[null,"عربــــي",{"$f":"IF($G$32=\"\",\"\",INDEX(fulrang1,$G$32,9))","v":0},{"$f":"IF($G$32=\"\",\"\",INDEX(fulrang1,$G$32,10))","v":0},{"$f":"IF($G$32=\"\",\"\",INDEX(fulrang1,$G$32,11))","v":0},"صفر درجة",null,null,null,63]
[null,"انجليـزي",{"$f":"IF($G$32=\"\",\"\",INDEX(fulrang1,$G$32,12))","v":0},{"$f":"IF($G$32=\"\",\"\",INDEX(fulrang1,$G$32,13))","v":0},{"$f":"IF($G$32=\"\",\"\",INDEX(fulrang1,$G$32,14))","v":0},"صفر درجة",null,null,null,65]
[null,"رياضيات",{"$f":"IF($G$32=\"\",\"\",INDEX(fulrang1,$G$32,15))","v":0},{"$f":"IF($G$32=\"\",\"\",INDEX(fulrang1,$G$32,16))","v":0},{"$f":"IF($G$32=\"\",\"\",INDEX(fulrang1,$G$32,17))","v":0},"صفر درجة",null,null,null,67]
[null,"اجتماعيات",{"$f":"IF($G$32=\"\",\"\",INDEX(fulrang1,$G$32,18))","v":0},{"$f":"IF($G$32=\"\",\"\",INDEX(fulrang1,$G32,19))","v":0},{"$f":"IF($G$32=\"\",\"\",INDEX(fulrang1,$G$32,20))","v":0},"صفر درجة",null,null,null,69]
[null,"علـــــوم",{"$f":"IF($G$32=\"\",\"\",INDEX(fulrang1,$G$32,21))","v":0},{"$f":"IF($G$32=\"\",\"\",INDEX(fulrang1,$G$32,22))","v":0},{"$f":"IF($G$32=\"\",\"\",INDEX(fulrang1,$G$32,23))","v":0},"صفر درجة",null,null,null,71]
[null,"الحاسوب",{"$f":"IF($G$32=\"\",\"\",INDEX(fulrang1,$G$32,24))","v":0},{"$f":"IF($G$32=\"\",\"\",INDEX(fulrang1,$G$32,25))","v":0},{"$f":"IF($G$32=\"\",\"\",INDEX(fulrang1,$G$32,26))","v":0},"صفر درجة",null,null,null,73]
[null,"الفنيـــة",{"$f":"IF($G$32=\"\",\"\",INDEX(fulrang1,$G$32,27))","v":0},{"$f":"IF($G$32=\"\",\"\",INDEX(fulrang1,$G$32,28))","v":0},{"$f":"IF($G$32=\"\",\"\",INDEX(fulrang1,$G$32,29))","v":0},"صفر درجة",null,null,null,75]
[null,"الرياضيــة",{"$f":"IF($G$32=\"\",\"\",INDEX(fulrang1,$G$32,30))","v":0},{"$f":"IF($G$32=\"\",\"\",INDEX(fulrang1,$G$32,31))","v":0},{"$f":"IF($G$32=\"\",\"\",INDEX(fulrang1,$G$32,32))","v":0},"صفر درجة",null,null,null,77]
[null,null,null,null,null,null,null,null,null,79]
[null,"النتيجــة",{"$f":"IF($G$32=\"\",\"\",INDEX(fulrang1,$G$32,34))","v":" راسب  "},"المجمـــــوع",{"$f":"IF($G$32=\"\",\"\",INDEX(fulrang1,$G$32,33))","v":0},"صفر درجة",null,null,null,81]
[null,"يعتمد ،،،،",null,null,null,null,null,null,null,83]
[null,"رئيس الكنترول",null,null,null,"مدير المدرسة",null,null,null,85]
[null,null,null,null,null,null,null,null,null,87]
[null,null,null,null,null,null,null,null,null,89]
[null,null,null,null,null,null,null,null,null,91]
[null,null,null,null,null,null,null,null,null,93]
[null,null,null,null,null,null,null,null,null,95]
[null,null,null,null,null,null,null,null,null,97]
[null,null,null,null,null,null,null,null,null,99]
[null,null,null,null,null,null,null,null,null,101]
[null,null,null,null,null,null,null,null,null,103]
[null,null,null,null,null,null,null,null,null,105]
[null,null,null,null,null,null,null,null,null,107]
[null,null,null,null,null,null,null,null,null,109]
[null,null,null,null,null,null,null,null,null,111]
[null,null,null,null,null,null,null,null,null,113]
[null,null,null,null,null,null,null,null,null,115]
[null,null,null,null,null,null,null,null,null,117]
[null,null,null,null,null,null,null,null,null,119]
[null,null,null,null,null,null,null,null,null,121]
[null,null,null,null,null,null,null,null,null,123]
[null,null,null,null,null,null,null,null,null,125]
[null,null,null,null,null,null,null,null,null,127]
[null,null,null,null,null,null,null,null,null,129]
[null,null,null,null,null,null,null,null,null,131]
[null,null,null,null,null,null,null,null,null,133]
[null,null,null,null,null,null,null,null,null,135]
[null,null,null,null,null,null,null,null,null,137]
[null,null,null,null,null,null,null,null,null,139]
[null,null,null,null,null,null,null,null,null,141]
[null,null,null,null,null,null,null,null,null,143]
[null,null,null,null,null,null,null,null,null,145]
[null,null,null,null,null,null,null,null,null,147]
[null,null,null,null,null,null,null,null,null,149]
[null,null,null,null,null,null,null,null,null,151]
[null,null,null,null,null,null,null,null,null,153]
[null,null,null,null,null,null,null,null,null,155]
[null,null,null,null,null,null,null,null,null,157]
[null,null,null,null,null,null,null,null,null,159]
[null,null,null,null,null,null,null,null,null,161]
[null,null,null,null,null,null,null,null,null,163]
[null,null,null,null,null,null,null,null,null,165]
[null,null,null,null,null,null,null,null,null,167]
[null,null,null,null,null,null,null,null,null,169]
[null,null,null,null,null,null,null,null,null,171]
[null,null,null,null,null,null,null,null,null,173]
[null,null,null,null,null,null,null,null,null,175]
[null,null,null,null,null,null,null,null,null,177]
[null,null,null,null,null,null,null,null,null,179]
[null,null,null,null,null,null,null,null,null,181]
[null,null,null,null,null,null,null,null,null,183]
[null,null,null,null,null,null,null,null,null,185]
[null,null,null,null,null,null,null,null,null,187]
[null,null,null,null,null,null,null,null,null,189]
[null,null,null,null,null,null,null,null,null,191]
[null,null,null,null,null,null,null,null,null,193]
[null,null,null,null,null,null,null,null,null,195]
[null,null,null,null,null,null,null,null,null,197]
[null,null,null,null,null,null,null,null,null,199]
[null,null,null,null,null,null,null,null,null,201]
[null,null,null,null,null,null,null,null,null,203]
[null,null,null,null,null,null,null,null,null,205]
[null,null,null,null,null,null,null,null,null,207]
[null,null,null,null,null,null,null,null,null,209]
[null,null,null,null,null,null,null,null,null,211]
[null,null,null,null,null,null,null,null,null,213]
[null,null,null,null,null,null,null,null,null,215]
[null,null,null,null,null,null,null,null,null,217]
[null,null,null,null,null,null,null,null,null,219]
[null,null,null,null,null,null,null,null,null,221]
[null,null,null,null,null,null,null,null,null,223]
[null,null,null,null,null,null,null,null,null,225]
[null,null,null,null,null,null,null,null,null,227]
[null,null,null,null,null,null,null,null,null,229]
[null,null,null,null,null,null,null,null,null,231]
[null,null,null,null,null,null,null,null,null,233]
[null,null,null,null,null,null,null,null,null,235]
[null,null,null,null,null,null,null,null,null,237]
[null,null,null,null,null,null,null,null,null,239]
[null,null,null,null,null,null,null,null,null,241]
[null,null,null,null,null,null,null,null,null,243]
[null,null,null,null,null,null,null,null,null,245]
[null,null,null,null,null,null,null,null,null,247]
[null,null,null,null,null,null,null,null,null,249]
[null,null,null,null,null,null,null,null,null,251]
[null,null,null,null,null,null,null,null,null,253]
[null,null,null,null,null,null,null,null,null,255]
[null,null,null,null,null,null,null,null,null,257]
[null,null,null,null,null,null,null,null,null,259]
[null,null,null,null,null,null,null,null,null,261]
[null,null,null,null,null,null,null,null,null,263]
[null,null,null,null,null,null,null,null,null,265]
[null,null,null,null,null,null,null,null,null,267]
[null,null,null,null,null,null,null,null,null,269]
[null,null,null,null,null,null,null,null,null,271]
[null,null,null,null,null,null,null,null,null,273]
[null,null,null,null,null,null,null,null,null,275]
[null,null,null,null,null,null,null,null,null,277]
[null,null,null,null,null,null,null,null,null,279]
[null,null,null,null,null,null,null,null,null,281]
[null,null,null,null,null,null,null,null,null,283]
[null,null,null,null,null,null,null,null,null,285]
[null,null,null,null,null,null,null,null,null,287]
[null,null,null,null,null,null,null,null,null,289]
[null,null,null,null,null,null,null,null,null,291]
[null,null,null,null,null,null,null,null,null,293]
[null,null,null,null,null,null,null,null,null,295]
[null,null,null,null,null,null,null,null,null,297]
[null,null,null,null,null,null,null,null,null,299]
[null,null,null,null,null,null,null,null,null,301]
[null,null,null,null,null,null,null,null,null,303]
[null,null,null,null,null,null,null,null,null,305]
[null,null,null,null,null,null,null,null,null,307]
[null,null,null,null,null,null,null,null,null,309]
[null,null,null,null,null,null,null,null,null,311]
[null,null,null,null,null,null,null,null,null,313]
[null,null,null,null,null,null,null,null,null,315]
[null,null,null,null,null,null,null,null,null,317]
[null,null,null,null,null,null,null,null,null,319]
[null,null,null,null,null,null,null,null,null,321]
[null,null,null,null,null,null,null,null,null,323]
[null,null,null,null,null,null,null,null,null,325]
[null,null,null,null,null,null,null,null,null,327]
[null,null,null,null,null,null,null,null,null,329]
[null,null,null,null,null,null,null,null,null,331]
[null,null,null,null,null,null,null,null,null,333]
[null,null,null,null,null,null,null,null,null,335]
[null,null,null,null,null,null,null,null,null,337]
[null,null,null,null,null,null,null,null,null,339]
[null,null,null,null,null,null,null,null,null,341]
[null,null,null,null,null,null,null,null,null,343]
[null,null,null,null,null,null,null,null,null,345]
[null,null,null,null,null,null,null,null,null,347]
[null,null,null,null,null,null,null,null,null,349]
[null,null,null,null,null,null,null,null,null,351]
[null,null,null,null,null,null,null,null,null,353]
[null,null,null,null,null,null,null,null,null,355]
[null,null,null,null,null,null,null,null,null,357]
[null,null,null,null,null,null,null,null,null,359]
[null,null,null,null,null,null,null,null,null,361]
[null,null,null,null,null,null,null,null,null,363]
[null,null,null,null,null,null,null,null,null,365]
[null,null,null,null,null,null,null,null,null,367]
[null,null,null,null,null,null,null,null,null,369]
[null,null,null,null,null,null,null,null,null,371]
[null,null,null,null,null,null,null,null,null,373]
[null,null,null,null,null,null,null,null,null,375]
[null,null,null,null,null,null,null,null,null,377]
[null,null,null,null,null,null,null,null,null,379]
[null,null,null,null,null,null,null,null,null,381]
[null,null,null,null,null,null,null,null,null,383]
[null,null,null,null,null,null,null,null,null,385]
[null,null,null,null,null,null,null,null,null,387]
[null,null,null,null,null,null,null,null,null,389]
[null,null,null,null,null,null,null,null,null,391]
[null,null,null,null,null,null,null,null,null,393]
[null,null,null,null,null,null,null,null,null,395]
[null,null,null,null,null,null,null,null,null,397]
[null,null,null,null,null,null,null,null,null,399]
[null,null,null,null,null,null,null,null,null,401]
[null,null,null,null,null,null,null,null,null,403]
[null,null,null,null,null,null,null,null,null,405]
[null,null,null,null,null,null,null,null,null,407]
[null,null,null,null,null,null,null,null,null,409]
[null,null,null,null,null,null,null,null,null,411]
[null,null,null,null,null,null,null,null,null,413]
[null,null,null,null,null,null,null,null,null,415]
[null,null,null,null,null,null,null,null,null,417]
[null,null,null,null,null,null,null,null,null,419]
[null,null,null,null,null,null,null,null,null,421]
[null,null,null,null,null,null,null,null,null,423]
[null,null,null,null,null,null,null,null,null,425]
[null,null,null,null,null,null,null,null,null,427]
[null,null,null,null,null,null,null,null,null,429]
[null,null,null,null,null,null,null,null,null,431]
[null,null,null,null,null,null,null,null,null,433]
[null,null,null,null,null,null,null,null,null,435]
[null,null,null,null,null,null,null,null,null,437]
[null,null,null,null,null,null,null,null,null,439]
[null,null,null,null,null,null,null,null,null,441]
[null,null,null,null,null,null,null,null,null,443]
[null,null,null,null,null,null,null,null,null,445]
[null,null,null,null,null,null,null,null,null,447]
[null,null,null,null,null,null,null,null,null,449]
[null,null,null,null,null,null,null,null,null,451]
[null,null,null,null,null,null,null,null,null,453]
[null,null,null,null,null,null,null,null,null,455]
[null,null,null,null,null,null,null,null,null,457]
[null,null,null,null,null,null,null,null,null,459]
[null,null,null,null,null,null,null,null,null,461]
[null,null,null,null,null,null,null,null,null,463]
[null,null,null,null,null,null,null,null,null,465]
[null,null,null,null,null,null,null,null,null,467]
[null,null,null,null,null,null,null,null,null,469]
[null,null,null,null,null,null,null,null,null,471]
[null,null,null,null,null,null,null,null,null,473]
[null,null,null,null,null,null,null,null,null,475]
[null,null,null,null,null,null,null,null,null,477]
[null,null,null,null,null,null,null,null,null,479]
[null,null,null,null,null,null,null,null,null,481]
[null,null,null,null,null,null,null,null,null,483]
[null,null,null,null,null,null,null,null,null,485]
[null,null,null,null,null,null,null,null,null,487]
[null,null,null,null,null,null,null,null,null,489]
[null,null,null,null,null,null,null,null,null,491]
[null,null,null,null,null,null,null,null,null,493]
[null,null,null,null,null,null,null,null,null,495]
[null,null,null,null,null,null,null,null,null,497]
[null,null,null,null,null,null,null,null,null,499]
[null,null,null,null,null,null,null,null,null,501]
[null,null,null,null,null,null,null,null,null,503]
[null,null,null,null,null,null,null,null,null,505]
[null,null,null,null,null,null,null,null,null,507]
[null,null,null,null,null,null,null,null,null,509]
[null,null,null,null,null,null,null,null,null,511]
[null,null,null,null,null,null,null,null,null,513]
[null,null,null,null,null,null,null,null,null,515]
[null,null,null,null,null,null,null,null,null,517]
[null,null,null,null,null,null,null,null,null,519]
[null,null,null,null,null,null,null,null,null,521]
[null,null,null,null,null,null,null,null,null,523]
[null,null,null,null,null,null,null,null,null,525]
[null,null,null,null,null,null,null,null,null,527]
[null,null,null,null,null,null,null,null,null,529]
[null,null,null,null,null,null,null,null,null,531]
[null,null,null,null,null,null,null,null,null,533]
[null,null,null,null,null,null,null,null,null,535]
[null,null,null,null,null,null,null,null,null,537]
[null,null,null,null,null,null,null,null,null,539]
[null,null,null,null,null,null,null,null,null,541]
[null,null,null,null,null,null,null,null,null,543]
[null,null,null,null,null,null,null,null,null,545]
[null,null,null,null,null,null,null,null,null,547]
[null,null,null,null,null,null,null,null,null,549]
[null,null,null,null,null,null,null,null,null,551]
[null,null,null,null,null,null,null,null,null,553]
[null,null,null,null,null,null,null,null,null,555]
[null,null,null,null,null,null,null,null,null,557]
[null,null,null,null,null,null,null,null,null,559]
[null,null,null,null,null,null,null,null,null,561]
[null,null,null,null,null,null,null,null,null,563]
[null,null,null,null,null,null,null,null,null,565]
[null,null,null,null,null,null,null,null,null,567]
[null,null,null,null,null,null,null,null,null,569]
[null,null,null,null,null,null,null,null,null,571]
[null,null,null,null,null,null,null,null,null,573]
[null,null,null,null,null,null,null,null,null,575]
[null,null,null,null,null,null,null,null,null,577]
[null,null,null,null,null,null,null,null,null,579]
[null,null,null,null,null,null,null,null,null,581]
[null,null,null,null,null,null,null,null,null,583]
[null,null,null,null,null,null,null,null,null,585]
[null,null,null,null,null,null,null,null,null,587]
[null,null,null,null,null,null,null,null,null,589]
[null,null,null,null,null,null,null,null,null,591]
[null,null,null,null,null,null,null,null,null,593]
[null,null,null,null,null,null,null,null,null,595]
[null,null,null,null,null,null,null,null,null,597]
[null,null,null,null,null,null,null,null,null,599]
[null,null,null,null,null,null,null,null,null,601]
[null,null,null,null,null,null,null,null,null,603]
[null,null,null,null,null,null,null,null,null,605]
[null,null,null,null,null,null,null,null,null,607]
[null,null,null,null,null,null,null,null,null,609]
[null,null,null,null,null,null,null,null,null,611]
[null,null,null,null,null,null,null,null,null,613]
[null,null,null,null,null,null,null,null,null,615]
[null,null,null,null,null,null,null,null,null,617]
[null,null,null,null,null,null,null,null,null,619]
[null,null,null,null,null,null,null,null,null,621]
[null,null,null,null,null,null,null,null,null,623]
[null,null,null,null,null,null,null,null,null,625]
[null,null,null,null,null,null,null,null,null,627]
[null,null,null,null,null,null,null,null,null,629]
[null,null,null,null,null,null,null,null,null,631]
[null,null,null,null,null,null,null,null,null,633]
[null,null,null,null,null,null,null,null,null,635]
[null,null,null,null,null,null,null,null,null,637]
[null,null,null,null,null,null,null,null,null,639]
[null,null,null,null,null,null,null,null,null,641]
[null,null,null,null,null,null,null,null,null,643]
[null,null,null,null,null,null,null,null,null,645]
[null,null,null,null,null,null,null,null,null,647]
[null,null,null,null,null,null,null,null,null,649]
[null,null,null,null,null,null,null,null,null,651]
[null,null,null,null,null,null,null,null,null,653]
[null,null,null,null,null,null,null,null,null,655]
[null,null,null,null,null,null,null,null,null,657]
[null,null,null,null,null,null,null,null,null,659]
[null,null,null,null,null,null,null,null,null,661]
[null,null,null,null,null,null,null,null,null,663]
[null,null,null,null,null,null,null,null,null,665]
[null,null,null,null,null,null,null,null,null,667]
[null,null,null,null,null,null,null,null,null,669]
[null,null,null,null,null,null,null,null,null,671]
[null,null,null,null,null,null,null,null,null,673]
[null,null,null,null,null,null,null,null,null,675]
[null,null,null,null,null,null,null,null,null,677]
[null,null,null,null,null,null,null,null,null,679]
[null,null,null,null,null,null,null,null,null,681]
[null,null,null,null,null,null,null,null,null,683]
[null,null,null,null,null,null,null,null,null,685]
[null,null,null,null,null,null,null,null,null,687]
[null,null,null,null,null,null,null,null,null,689]
[null,null,null,null,null,null,null,null,null,691]
[null,null,null,null,null,null,null,null,null,693]
[null,null,null,null,null,null,null,null,null,695]
[null,null,null,null,null,null,null,null,null,697]
[null,null,null,null,null,null,null,null,null,699]
[null,null,null,null,null,null,null,null,null,701]
[null,null,null,null,null,null,null,null,null,703]
[null,null,null,null,null,null,null,null,null,705]
[null,null,null,null,null,null,null,null,null,707]
[null,null,null,null,null,null,null,null,null,709]
[null,null,null,null,null,null,null,null,null,711]
[null,null,null,null,null,null,null,null,null,713]
[null,null,null,null,null,null,null,null,null,715]
[null,null,null,null,null,null,null,null,null,717]
[null,null,null,null,null,null,null,null,null,719]
[null,null,null,null,null,null,null,null,null,721]
[null,null,null,null,null,null,null,null,null,723]
[null,null,null,null,null,null,null,null,null,725]
[null,null,null,null,null,null,null,null,null,727]
[null,null,null,null,null,null,null,null,null,729]
[null,null,null,null,null,null,null,null,null,731]
[null,null,null,null,null,null,null,null,null,733]
[null,null,null,null,null,null,null,null,null,735]
[null,null,null,null,null,null,null,null,null,737]
[null,null,null,null,null,null,null,null,null,739]
[null,null,null,null,null,null,null,null,null,741]
[null,null,null,null,null,null,null,null,null,743]
[null,null,null,null,null,null,null,null,null,745]
[null,null,null,null,null,null,null,null,null,747]
[null,null,null,null,null,null,null,null,null,749]
[null,null,null,null,null,null,null,null,null,751]
[null,null,null,null,null,null,null,null,null,753]
[null,null,null,null,null,null,null,null,null,755]
[null,null,null,null,null,null,null,null,null,757]
[null,null,null,null,null,null,null,null,null,759]
[null,null,null,null,null,null,null,null,null,761]
[null,null,null,null,null,null,null,null,null,763]
[null,null,null,null,null,null,null,null,null,765]
[null,null,null,null,null,null,null,null,null,767]
[null,null,null,null,null,null,null,null,null,769]
[null,null,null,null,null,null,null,null,null,771]
[null,null,null,null,null,null,null,null,null,773]
[null,null,null,null,null,null,null,null,null,775]
[null,null,null,null,null,null,null,null,null,777]
[null,null,null,null,null,null,null,null,null,779]
[null,null,null,null,null,null,null,null,null,781]
[null,null,null,null,null,null,null,null,null,783]
[null,null,null,null,null,null,null,null,null,785]
[null,null,null,null,null,null,null,null,null,787]
[null,null,null,null,null,null,null,null,null,789]
[null,null,null,null,null,null,null,null,null,791]
[null,null,null,null,null,null,null,null,null,793]
[null,null,null,null,null,null,null,null,null,795]
[null,null,null,null,null,null,null,null,null,797]
[null,null,null,null,null,null,null,null,null,799]
[null,null,null,null,null,null,null,null,null,801]
[null,null,null,null,null,null,null,null,null,803]
[null,null,null,null,null,null,null,null,null,805]
[null,null,null,null,null,null,null,null,null,807]
[null,null,null,null,null,null,null,null,null,809]
[null,null,null,null,null,null,null,null,null,811]
[null,null,null,null,null,null,null,null,null,813]
[null,null,null,null,null,null,null,null,null,815]
[null,null,null,null,null,null,null,null,null,817]
[null,null,null,null,null,null,null,null,null,819]
[null,null,null,null,null,null,null,null,null,821]
[null,null,null,null,null,null,null,null,null,823]
[null,null,null,null,null,null,null,null,null,825]
[null,null,null,null,null,null,null,null,null,827]
[null,null,null,null,null,null,null,null,null,829]
[null,null,null,null,null,null,null,null,null,831]
[null,null,null,null,null,null,null,null,null,833]
[null,null,null,null,null,null,null,null,null,835]

{"sheet":"اول","index":1,"n_rows":212,"n_cols":35,"rows_kept":212,"cut":false,"hidden":false,"merged":[[9,29,9,31],[9,32,11,32],[9,33,11,33],[9,11,9,13],[9,14,9,16],[9,17,9,19],[9,20,9,22],[9,23,9,25],[9,26,9,28],[2,32,3,33],[5,1,6,1],[5,2,7,2],[5,3,7,31],[5,32,7,32],[9,0,11,0],[9,1,11,1],[9,2,9,4],[9,5,9,7],[9,8,9,10]]}
[1,2,3,4,5,6,7,8,9,10,11,12,13,14,15,16,17,18,19,20,21,22,23,24,25,26,27,28,29,30,31,32,33,34]
[]
[null,null,null,null,null,null,null,null,null,null,null,null,null,null,null,null,null,null,null,null,null,null,null,null,null,null,null,null,null,null,null,null,"2023/2022"]
[]
[]
[{"$f":"COUNTA(B13:B212)","v":8},null," ","كشف رصد درجات الفصل الاول ( الصف الاول اساسي ) للعام الدراسي ( 2022 / 2023 )"]
[]
[]
[]
["الرقم","   اسم الطالب / الطالبة  رباعيا مع اللقب","القران الكريم",null,null,"التربية الاسلامية",null,null,"اللغة العربية",null,null,"اللغة الانجليزية",null,null,"الرياضيات",null,null,"اجتماعيات",null,null,"علوم",null,null,"الحاسوب",null,null,"الفنية",null,null,"الرياضية",null,null,"المجموع الكلي","ملاحظات","."]
[null,null,"الفصل الاول","الفصل الثاني","المجموع","الفصل الاول","الفصل الثاني","المجموع","الفصل الاول","الفصل الثاني","المجموع","الفصل الاول","الفصل الثاني","المجموع","الفصل الاول","الفصل الثاني","المجموع","الفصل الاول","الفصل الثاني","المجموع","الفصل الاول","الفصل الثاني","المجموع","الفصل الاول","الفصل الثاني","المجموع","الفصل الاول","الفصل الثاني","المجموع","الفصل الاول","الفصل الثاني","المجموع"]
[null,null,20,30,50,20,30,50,20,30,50,20,30,50,20,30,50,20,30,50,20,30,50,20,30,50,20,30,50,20,30,50]
[1,"احمد ",null,null,{"$f":"C13+D13","v":0},null,null,{"$f":"F13+G13","v":0},null,null,{"$f":"I13+J13","v":0},null,null,{"$f":"L13+M13","v":0},null,null,{"$f":"O13+P13","v":0},null,null,null,null,null,{"$f":"U13+V13","v":0},null,null,null,null,null,{"$f":"AA13+AB13","v":0},null,null,{"$f":"AD13+AE13","v":0},{"$f":"E13+H13+K13+N13+Q13+W13+AC13+AF13","v":0},{"$f":"IF(AND(E13>=50,H13>=50,K13>=50,N13>=50,Q13>=50,W13>=50,AC13>=50,AF13>=50),\" ناجح\",\" راسب  \")","v":" راسب  "}]
[2,"بسام",null,null,0,null,null,0,null,null,0,null,null,0,null,null,0,null,null,null,null,null,0,null,null,null,null,null,0,null,null,0,{"$f":"E14+H14+K14+N14+Q14+W14+AC14+AF14","v":0},{"$f":"IF(AND(E14>=50,H14>=50,K14>=50,N14>=50,Q14>=50,W14>=50,AC14>=50,AF14>=50),\" ناجح\",\" راسب  \")","v":" راسب  "}]
[3,"جميل",null,null,0,null,null,0,null,null,0,null,null,0,null,null,0,null,null,null,null,null,0,null,null,null,null,null,0,null,null,0,0," راسب  "]
[4,"حامد",null,null,0,null,null,0,null,null,0,null,null,0,null,null,0,null,null,null,null,null,0,null,null,null,null,null,0,null,null,0,0," راسب  "]
[5,"سليم",null,null,0,null,null,0,null,null,0,null,null,0,null,null,0,null,null,null,null,null,0,null,null,null,null,null,0,null,null,0,0," راسب  "]
[6,"طارق",null,null,0,null,null,0,null,null,0,null,null,0,null,null,0,null,null,null,null,null,0,null,null,null,null,null,0,null,null,0,0," راسب  "]
[7,"عباس",null,null,0,null,null,0,null,null,0,null,null,0,null,null,0,null,null,null,null,null,0,null,null,null,null,null,0,null,null,0,0," راسب  "]
[8,"علي",null,null,0,null,null,0,null,null,0,null,null,0,null,null,0,null,null,null,null,null,0,null,null,null,null,null,0,null,null,0,0," راسب  "]
[9,null,null,null,0,null,null,0,null,null,0,null,null,0,null,null,0,null,null,null,null,null,0,null,null,null,null,null,0,null,null,0,0," راسب  "]
[10,null,null,null,0,null,null,0,null,null,0,null,null,0,null,null,0,null,null,null,null,null,0,null,null,null,null,null,0,null,null,0,0," راسب  "]
[11,null,null,null,0,null,null,0,null,null,0,null,null,0,null,null,0,null,null,null,null,null,0,null,null,null,null,null,0,null,null,0,0," راسب  "]
[12,null,null,null,0,null,null,0,null,null,0,null,null,0,null,null,0,null,null,null,null,null,0,null,null,null,null,null,0,null,null,0,0," راسب  "]
[13,null,null,null,0,null,null,0,null,null,0,null,null,0,null,null,0,null,null,null,null,null,0,null,null,null,null,null,0,null,null,0,0," راسب  "]
[14,null,null,null,0,null,null,0,null,null,0,null,null,0,null,null,0,null,null,null,null,null,0,null,null,null,null,null,0,null,null,0,0," راسب  "]
[15,null,null,null,0,null,null,0,null,null,0,null,null,0,null,null,0,null,null,null,null,null,0,null,null,null,null,null,0,null,null,0,0," راسب  "]
[16,null,null,null,0,null,null,0,null,null,0,null,null,0,null,null,0,null,null,null,null,null,0,null,null,null,null,null,0,null,null,0,0," راسب  "]
[17,null,null,null,0,null,null,0,null,null,0,null,null,0,null,null,0,null,null,null,null,null,0,null,null,null,null,null,0,null,null,0,0," راسب  "]
[18,null,null,null,0,null,null,0,null,null,0,null,null,0,null,null,0,null,null,null,null,null,0,null,null,null,null,null,0,null,null,0,0," راسب  "]
[19,null,null,null,0,null,null,0,null,null,0,null,null,0,null,null,0,null,null,null,null,null,0,null,null,null,null,null,0,null,null,0,0," راسب  "]
[20,null,null,null,0,null,null,0,null,null,0,null,null,0,null,null,0,null,null,null,null,null,0,null,null,null,null,null,0,null,null,0,0," راسب  "]
[21,null,null,null,0,null,null,0,null,null,0,null,null,0,null,null,0,null,null,null,null,null,0,null,null,null,null,null,0,null,null,0,0," راسب  "]
[22,null,null,null,0,null,null,0,null,null,0,null,null,0,null,null,0,null,null,null,null,null,0,null,null,null,null,null,0,null,null,0,0," راسب  "]
[23,null,null,null,0,null,null,0,null,null,0,null,null,0,null,null,0,null,null,null,null,null,0,null,null,null,null,null,0,null,null,0,0," راسب  "]
[24,null,null,null,0,null,null,0,null,null,0,null,null,0,null,null,0,null,null,null,null,null,0,null,null,null,null,null,0,null,null,0,0," راسب  "]
[25,null,null,null,0,null,null,0,null,null,0,null,null,0,null,null,0,null,null,null,null,null,0,null,null,null,null,null,0,null,null,0,0," راسب  "]
[26,null,null,null,0,null,null,0,null,null,0,null,null,0,null,null,0,null,null,null,null,null,0,null,null,null,null,null,0,null,null,0,0," راسب  "]
[27,null,null,null,0,null,null,0,null,null,0,null,null,0,null,null,0,null,null,null,null,null,0,null,null,null,null,null,0,null,null,0,0," راسب  "]
[28,null,null,null,0,null,null,0,null,null,0,null,null,0,null,null,0,null,null,null,null,null,0,null,null,null,null,null,0,null,null,0,0," راسب  "]
[29,null,null,null,0,null,null,0,null,null,0,null,null,0,null,null,0,null,null,null,null,null,0,null,null,null,null,null,0,null,null,0,0," راسب  "]
[30,null,null,null,0,null,null,0,null,null,0,null,null,0,null,null,0,null,null,null,null,null,0,null,null,null,null,null,0,null,null,0,0," راسب  "]
[31,null,null,null,0,null,null,0,null,null,0,null,null,0,null,null,0,null,null,null,null,null,0,null,null,null,null,null,0,null,null,0,0," راسب  "]
[32,null,null,null,0,null,null,0,null,null,0,null,null,0,null,null,0,null,null,null,null,null,0,null,null,null,null,null,0,null,null,0,0," راسب  "]
[33,null,null,null,0,null,null,0,null,null,0,null,null,0,null,null,0,null,null,null,null,null,0,null,null,null,null,null,0,null,null,0,0," راسب  "]
[34,null,null,null,0,null,null,0,null,null,0,null,null,0,null,null,0,null,null,null,null,null,0,null,null,null,null,null,0,null,null,0,0," راسب  "]
[35,null,null,null,0,null,null,0,null,null,0,null,null,0,null,null,0,null,null,null,null,null,0,null,null,null,null,null,0,null,null,0,0," راسب  "]
[36,null,null,null,0,null,null,0,null,null,0,null,null,0,null,null,0,null,null,null,null,null,0,null,null,null,null,null,0,null,null,0,0," راسب  "]
[37,null,null,null,0,null,null,0,null,null,0,null,null,0,null,null,0,null,null,null,null,null,0,null,null,null,null,null,0,null,null,0,0," راسب  "]
[38,null,null,null,0,null,null,0,null,null,0,null,null,0,null,null,0,null,null,null,null,null,0,null,null,null,null,null,0,null,null,0,0," راسب  "]
[39,null,null,null,0,null,null,0,null,null,0,null,null,0,null,null,0,null,null,null,null,null,0,null,null,null,null,null,0,null,null,0,0," راسب  "]
[40,null,null,null,0,null,null,0,null,null,0,null,null,0,null,null,0,null,null,null,null,null,0,null,null,null,null,null,0,null,null,0,0," راسب  "]
[41,null,null,null,0,null,null,0,null,null,0,null,null,0,null,null,0,null,null,null,null,null,0,null,null,null,null,null,0,null,null,0,0," راسب  "]
[42,null,null,null,0,null,null,0,null,null,0,null,null,0,null,null,0,null,null,null,null,null,0,null,null,null,null,null,0,null,null,0,0," راسب  "]
[43,null,null,null,0,null,null,0,null,null,0,null,null,0,null,null,0,null,null,null,null,null,0,null,null,null,null,null,0,null,null,0,0," راسب  "]
[44,null,null,null,0,null,null,0,null,null,0,null,null,0,null,null,0,null,null,null,null,null,0,null,null,null,null,null,0,null,null,0,0," راسب  "]
[45,null,null,null,0,null,null,0,null,null,0,null,null,0,null,null,0,null,null,null,null,null,0,null,null,null,null,null,0,null,null,0,0," راسب  "]
[46,null,null,null,0,null,null,0,null,null,0,null,null,0,null,null,0,null,null,null,null,null,0,null,null,null,null,null,0,null,null,0,0," راسب  "]
[47,null,null,null,0,null,null,0,null,null,0,null,null,0,null,null,0,null,null,null,null,null,0,null,null,null,null,null,0,null,null,0,0," راسب  "]
[48,null,null,null,0,null,null,0,null,null,0,null,null,0,null,null,0,null,null,null,null,null,0,null,null,null,null,null,0,null,null,0,0," راسب  "]
[49,null,null,null,0,null,null,0,null,null,0,null,null,0,null,null,0,null,null,null,null,null,0,null,null,null,null,null,0,null,null,0,0," راسب  "]
[50,null,null,null,0,null,null,0,null,null,0,null,null,0,null,null,0,null,null,null,null,null,0,null,null,null,null,null,0,null,null,0,0," راسب  "]
[51,null,null,null,0,null,null,0,null,null,0,null,null,0,null,null,0,null,null,null,null,null,0,null,null,null,null,null,0,null,null,0,0," راسب  "]
[52,null,null,null,0,null,null,0,null,null,0,null,null,0,null,null,0,null,null,null,null,null,0,null,null,null,null,null,0,null,null,0,0," راسب  "]
[53,null,null,null,0,null,null,0,null,null,0,null,null,0,null,null,0,null,null,null,null,null,0,null,null,null,null,null,0,null,null,0,0," راسب  "]
[54,null,null,null,0,null,null,0,null,null,0,null,null,0,null,null,0,null,null,null,null,null,0,null,null,null,null,null,0,null,null,0,0," راسب  "]
[55,null,null,null,0,null,null,0,null,null,0,null,null,0,null,null,0,null,null,null,null,null,0,null,null,null,null,null,0,null,null,0,0," راسب  "]
[56,null,null,null,0,null,null,0,null,null,0,null,null,0,null,null,0,null,null,null,null,null,0,null,null,null,null,null,0,null,null,0,0," راسب  "]
[57,null,null,null,0,null,null,0,null,null,0,null,null,0,null,null,0,null,null,null,null,null,0,null,null,null,null,null,0,null,null,0,0," راسب  "]
[58,null,null,null,0,null,null,0,null,null,0,null,null,0,null,null,0,null,null,null,null,null,0,null,null,null,null,null,0,null,null,0,0," راسب  "]
[59,null,null,null,0,null,null,0,null,null,0,null,null,0,null,null,0,null,null,null,null,null,0,null,null,null,null,null,0,null,null,0,0," راسب  "]
[60,null,null,null,0,null,null,0,null,null,0,null,null,0,null,null,0,null,null,null,null,null,0,null,null,null,null,null,0,null,null,0,0," راسب  "]
[61,null,null,null,0,null,null,0,null,null,0,null,null,0,null,null,0,null,null,null,null,null,0,null,null,null,null,null,0,null,null,0,0," راسب  "]
[62,null,null,null,0,null,null,0,null,null,0,null,null,0,null,null,0,null,null,null,null,null,0,null,null,null,null,null,0,null,null,0,0," راسب  "]
[63,null,null,null,0,null,null,0,null,null,0,null,null,0,null,null,0,null,null,null,null,null,0,null,null,null,null,null,0,null,null,0,0," راسب  "]
[64,null,null,null,0,null,null,0,null,null,0,null,null,0,null,null,0,null,null,null,null,null,0,null,null,null,null,null,0,null,null,0,0," راسب  "]
[65,null,null,null,{"$f":"C77+D77","v":0},null,null,{"$f":"F77+G77","v":0},null,null,{"$f":"I77+J77","v":0},null,null,{"$f":"L77+M77","v":0},null,null,{"$f":"O77+P77","v":0},null,null,null,null,null,{"$f":"U77+V77","v":0},null,null,null,null,null,{"$f":"AA77+AB77","v":0},null,null,{"$f":"AD77+AE77","v":0},0," راسب  "]
[66,null,null,null,0,null,null,0,null,null,0,null,null,0,null,null,0,null,null,null,null,null,0,null,null,null,null,null,0,null,null,0,{"$f":"E78+H78+K78+N78+Q78+W78+AC78+AF78","v":0},{"$f":"IF(AND(E78>=50,H78>=50,K78>=50,N78>=50,Q78>=50,W78>=50,AC78>=50,AF78>=50),\" ناجح\",\" راسب  \")","v":" راسب  "}]
[67,null,null,null,0,null,null,0,null,null,0,null,null,0,null,null,0,null,null,null,null,null,0,null,null,{"$f":"X79+Y79","v":0},null,null,0,null,null,0,0," راسب  "]
[68,null,null,null,0,null,null,0,null,null,0,null,null,0,null,null,0,null,null,null,null,null,0,null,null,0,null,null,0,null,null,0,0," راسب  "]
[69,null,null,null,0,null,null,0,null,null,0,null,null,0,null,null,0,null,null,null,null,null,0,null,null,0,null,null,0,null,null,0,0," راسب  "]
[70,null,null,null,0,null,null,0,null,null,0,null,null,0,null,null,0,null,null,null,null,null,0,null,null,0,null,null,0,null,null,0,0," راسب  "]
[71,null,null,null,0,null,null,0,null,null,0,null,null,0,null,null,0,null,null,null,null,null,0,null,null,0,null,null,0,null,null,0,0," راسب  "]
[72,null,null,null,0,null,null,0,null,null,0,null,null,0,null,null,0,null,null,null,null,null,0,null,null,0,null,null,0,null,null,0,0," راسب  "]
[73,null,null,null,0,null,null,0,null,null,0,null,null,0,null,null,0,null,null,null,null,null,0,null,null,0,null,null,0,null,null,0,0," راسب  "]
[74,null,null,null,0,null,null,0,null,null,0,null,null,0,null,null,0,null,null,null,null,null,0,null,null,0,null,null,0,null,null,0,0," راسب  "]
[75,null,null,null,0,null,null,0,null,null,0,null,null,0,null,null,0,null,null,null,null,null,0,null,null,0,null,null,0,null,null,0,0," راسب  "]
[76,null,null,null,0,null,null,0,null,null,0,null,null,0,null,null,0,null,null,null,null,null,0,null,null,0,null,null,0,null,null,0,0," راسب  "]
[77,null,null,null,0,null,null,0,null,null,0,null,null,0,null,null,0,null,null,null,null,null,0,null,null,0,null,null,0,null,null,0,0," راسب  "]
[78,null,null,null,0,null,null,0,null,null,0,null,null,0,null,null,0,null,null,null,null,null,0,null,null,0,null,null,0,null,null,0,0," راسب  "]
[79,null,null,null,0,null,null,0,null,null,0,null,null,0,null,null,0,null,null,null,null,null,0,null,null,0,null,null,0,null,null,0,0," راسب  "]
[80,null,null,null,0,null,null,0,null,null,0,null,null,0,null,null,0,null,null,null,null,null,0,null,null,0,null,null,0,null,null,0,0," راسب  "]
[81,null,null,null,0,null,null,0,null,null,0,null,null,0,null,null,0,null,null,null,null,null,0,null,null,0,null,null,0,null,null,0,0," راسب  "]
[82,null,null,null,0,null,null,0,null,null,0,null,null,0,null,null,0,null,null,null,null,null,0,null,null,0,null,null,0,null,null,0,0," راسب  "]
[83,null,null,null,0,null,null,0,null,null,0,null,null,0,null,null,0,null,null,null,null,null,0,null,null,0,null,null,0,null,null,0,0," راسب  "]
[84,null,null,null,0,null,null,0,null,null,0,null,null,0,null,null,0,null,null,null,null,null,0,null,null,0,null,null,0,null,null,0,0," راسب  "]
[85,null,null,null,0,null,null,0,null,null,0,null,null,0,null,null,0,null,null,null,null,null,0,null,null,0,null,null,0,null,null,0,0," راسب  "]
[86,null,null,null,0,null,null,0,null,null,0,null,null,0,null,null,0,null,null,null,null,null,0,null,null,0,null,null,0,null,null,0,0," راسب  "]
[87,null,null,null,0,null,null,0,null,null,0,null,null,0,null,null,0,null,null,null,null,null,0,null,null,0,null,null,0,null,null,0,0," راسب  "]
[88,null,null,null,0,null,null,0,null,null,0,null,null,0,null,null,0,null,null,null,null,null,0,null,null,0,null,null,0,null,null,0,0," راسب  "]
[89,null,null,null,0,null,null,0,null,null,0,null,null,0,null,null,0,null,null,null,null,null,0,null,null,0,null,null,0,null,null,0,0," راسب  "]
[90,null,null,null,0,null,null,0,null,null,0,null,null,0,null,null,0,null,null,null,null,null,0,null,null,0,null,null,0,null,null,0,0," راسب  "]
[91,null,null,null,0,null,null,0,null,null,0,null,null,0,null,null,0,null,null,null,null,null,0,null,null,0,null,null,0,null,null,0,0," راسب  "]
[92,null,null,null,0,null,null,0,null,null,0,null,null,0,null,null,0,null,null,null,null,null,0,null,null,0,null,null,0,null,null,0,0," راسب  "]
[93,null,null,null,0,null,null,0,null,null,0,null,null,0,null,null,0,null,null,null,null,null,0,null,null,0,null,null,0,null,null,0,0," راسب  "]
[94,null,null,null,0,null,null,0,null,null,0,null,null,0,null,null,0,null,null,null,null,null,0,null,null,0,null,null,0,null,null,0,0," راسب  "]
[95,null,null,null,0,null,null,0,null,null,0,null,null,0,null,null,0,null,null,null,null,null,0,null,null,0,null,null,0,null,null,0,0," راسب  "]
[96,null,null,null,0,null,null,0,null,null,0,null,null,0,null,null,0,null,null,null,null,null,0,null,null,0,null,null,0,null,null,0,0," راسب  "]
[97,null,null,null,0,null,null,0,null,null,0,null,null,0,null,null,0,null,null,null,null,null,0,null,null,0,null,null,0,null,null,0,0," راسب  "]
[98,null,null,null,0,null,null,0,null,null,0,null,null,0,null,null,0,null,null,null,null,null,0,null,null,0,null,null,0,null,null,0,0," راسب  "]
[99,null,null,null,0,null,null,0,null,null,0,null,null,0,null,null,0,null,null,null,null,null,0,null,null,0,null,null,0,null,null,0,0," راسب  "]
[100,null,null,null,0,null,null,0,null,null,0,null,null,0,null,null,0,null,null,null,null,null,0,null,null,0,null,null,0,null,null,0,0," راسب  "]
[101,null,null,null,0,null,null,0,null,null,0,null,null,0,null,null,0,null,null,null,null,null,0,null,null,0,null,null,0,null,null,0,0," راسب  "]
[102,null,null,null,0,null,null,0,null,null,0,null,null,0,null,null,0,null,null,null,null,null,0,null,null,0,null,null,0,null,null,0,0," راسب  "]
[103,null,null,null,0,null,null,0,null,null,0,null,null,0,null,null,0,null,null,null,null,null,0,null,null,0,null,null,0,null,null,0,0," راسب  "]
[104,null,null,null,0,null,null,0,null,null,0,null,null,0,null,null,0,null,null,null,null,null,0,null,null,0,null,null,0,null,null,0,0," راسب  "]
[105,null,null,null,0,null,null,0,null,null,0,null,null,0,null,null,0,null,null,null,null,null,0,null,null,0,null,null,0,null,null,0,0," راسب  "]
[106,null,null,null,0,null,null,0,null,null,0,null,null,0,null,null,0,null,null,null,null,null,0,null,null,0,null,null,0,null,null,0,0," راسب  "]
[107,null,null,null,0,null,null,0,null,null,0,null,null,0,null,null,0,null,null,null,null,null,0,null,null,0,null,null,0,null,null,0,0," راسب  "]
[108,null,null,null,0,null,null,0,null,null,0,null,null,0,null,null,0,null,null,null,null,null,0,null,null,0,null,null,0,null,null,0,0," راسب  "]
[109,null,null,null,0,null,null,0,null,null,0,null,null,0,null,null,0,null,null,null,null,null,0,null,null,0,null,null,0,null,null,0,0," راسب  "]
[110,null,null,null,0,null,null,0,null,null,0,null,null,0,null,null,0,null,null,null,null,null,0,null,null,0,null,null,0,null,null,0,0," راسب  "]
[111,null,null,null,0,null,null,0,null,null,0,null,null,0,null,null,0,null,null,null,null,null,0,null,null,0,null,null,0,null,null,0,0," راسب  "]
[112,null,null,null,0,null,null,0,null,null,0,null,null,0,null,null,0,null,null,null,null,null,0,null,null,0,null,null,0,null,null,0,0," راسب  "]
[113,null,null,null,0,null,null,0,null,null,0,null,null,0,null,null,0,null,null,null,null,null,0,null,null,0,null,null,0,null,null,0,0," راسب  "]
[114,null,null,null,0,null,null,0,null,null,0,null,null,0,null,null,0,null,null,null,null,null,0,null,null,0,null,null,0,null,null,0,0," راسب  "]
[115,null,null,null,0,null,null,0,null,null,0,null,null,0,null,null,0,null,null,null,null,null,0,null,null,0,null,null,0,null,null,0,0," راسب  "]
[116,null,null,null,0,null,null,0,null,null,0,null,null,0,null,null,0,null,null,null,null,null,0,null,null,0,null,null,0,null,null,0,0," راسب  "]
[117,null,null,null,0,null,null,0,null,null,0,null,null,0,null,null,0,null,null,null,null,null,0,null,null,0,null,null,0,null,null,0,0," راسب  "]
[118,null,null,null,0,null,null,0,null,null,0,null,null,0,null,null,0,null,null,null,null,null,0,null,null,0,null,null,0,null,null,0,0," راسب  "]
[119,null,null,null,0,null,null,0,null,null,0,null,null,0,null,null,0,null,null,null,null,null,0,null,null,0,null,null,0,null,null,0,0," راسب  "]
[120,null,null,null,0,null,null,0,null,null,0,null,null,0,null,null,0,null,null,null,null,null,0,null,null,0,null,null,0,null,null,0,0," راسب  "]
[121,null,null,null,0,null,null,0,null,null,0,null,null,0,null,null,0,null,null,null,null,null,0,null,null,0,null,null,0,null,null,0,0," راسب  "]
[122,null,null,null,0,null,null,0,null,null,0,null,null,0,null,null,0,null,null,null,null,null,0,null,null,0,null,null,0,null,null,0,0," راسب  "]
[123,null,null,null,0,null,null,0,null,null,0,null,null,0,null,null,0,null,null,null,null,null,0,null,null,0,null,null,0,null,null,0,0," راسب  "]
[124,null,null,null,0,null,null,0,null,null,0,null,null,0,null,null,0,null,null,null,null,null,0,null,null,0,null,null,0,null,null,0,0," راسب  "]
[125,null,null,null,0,null,null,0,null,null,0,null,null,0,null,null,0,null,null,null,null,null,0,null,null,0,null,null,0,null,null,0,0," راسب  "]
[126,null,null,null,0,null,null,0,null,null,0,null,null,0,null,null,0,null,null,null,null,null,0,null,null,0,null,null,0,null,null,0,0," راسب  "]
[127,null,null,null,0,null,null,0,null,null,0,null,null,0,null,null,0,null,null,null,null,null,0,null,null,0,null,null,0,null,null,0,0," راسب  "]
[128,null,null,null,0,null,null,0,null,null,0,null,null,0,null,null,0,null,null,null,null,null,0,null,null,0,null,null,0,null,null,0,0," راسب  "]
[129,null,null,null,{"$f":"C141+D141","v":0},null,null,{"$f":"F141+G141","v":0},null,null,{"$f":"I141+J141","v":0},null,null,{"$f":"L141+M141","v":0},null,null,{"$f":"O141+P141","v":0},null,null,null,null,null,{"$f":"U141+V141","v":0},null,null,{"$f":"X141+Y141","v":0},null,null,{"$f":"AA141+AB141","v":0},null,null,{"$f":"AD141+AE141","v":0},0," راسب  "]
[130,null,null,null,0,null,null,0,null,null,0,null,null,0,null,null,0,null,null,null,null,null,0,null,null,0,null,null,0,null,null,0,{"$f":"E142+H142+K142+N142+Q142+W142+AC142+AF142","v":0},{"$f":"IF(AND(E142>=50,H142>=50,K142>=50,N142>=50,Q142>=50,W142>=50,AC142>=50,AF142>=50),\" ناجح\",\" راسب  \")","v":" راسب  "}]
[131,null,null,null,0,null,null,0,null,null,0,null,null,0,null,null,0,null,null,null,null,null,0,null,null,0,null,null,0,null,null,0,0," راسب  "]
[132,null,null,null,0,null,null,0,null,null,0,null,null,0,null,null,0,null,null,null,null,null,0,null,null,0,null,null,0,null,null,0,0," راسب  "]
[133,null,null,null,0,null,null,0,null,null,0,null,null,0,null,null,0,null,null,null,null,null,0,null,null,0,null,null,0,null,null,0,0," راسب  "]
[134,null,null,null,0,null,null,0,null,null,0,null,null,0,null,null,0,null,null,null,null,null,0,null,null,0,null,null,0,null,null,0,0," راسب  "]
[135,null,null,null,0,null,null,0,null,null,0,null,null,0,null,null,0,null,null,null,null,null,0,null,null,0,null,null,0,null,null,0,0," راسب  "]
[136,null,null,null,0,null,null,0,null,null,0,null,null,0,null,null,0,null,null,null,null,null,0,null,null,0,null,null,0,null,null,0,0," راسب  "]
[137,null,null,null,0,null,null,0,null,null,0,null,null,0,null,null,0,null,null,null,null,null,0,null,null,0,null,null,0,null,null,0,0," راسب  "]
[138,null,null,null,0,null,null,0,null,null,0,null,null,0,null,null,0,null,null,null,null,null,0,null,null,0,null,null,0,null,null,0,0," راسب  "]
[139,null,null,null,0,null,null,0,null,null,0,null,null,0,null,null,0,null,null,null,null,null,0,null,null,0,null,null,0,null,null,0,0," راسب  "]
[140,null,null,null,0,null,null,0,null,null,0,null,null,0,null,null,0,null,null,null,null,null,0,null,null,0,null,null,0,null,null,0,0," راسب  "]
[141,null,null,null,0,null,null,0,null,null,0,null,null,0,null,null,0,null,null,null,null,null,0,null,null,0,null,null,0,null,null,0,0," راسب  "]
[142,null,null,null,0,null,null,0,null,null,0,null,null,0,null,null,0,null,null,null,null,null,0,null,null,0,null,null,0,null,null,0,0," راسب  "]
[143,null,null,null,0,null,null,0,null,null,0,null,null,0,null,null,0,null,null,null,null,null,0,null,null,0,null,null,0,null,null,0,0," راسب  "]
[144,null,null,null,0,null,null,0,null,null,0,null,null,0,null,null,0,null,null,null,null,null,0,null,null,0,null,null,0,null,null,0,0," راسب  "]
[145,null,null,null,0,null,null,0,null,null,0,null,null,0,null,null,0,null,null,null,null,null,0,null,null,0,null,null,0,null,null,0,0," راسب  "]
[146,null,null,null,0,null,null,0,null,null,0,null,null,0,null,null,0,null,null,null,null,null,0,null,null,0,null,null,0,null,null,0,0," راسب  "]
[147,null,null,null,0,null,null,0,null,null,0,null,null,0,null,null,0,null,null,null,null,null,0,null,null,0,null,null,0,null,null,0,0," راسب  "]
[148,null,null,null,0,null,null,0,null,null,0,null,null,0,null,null,0,null,null,null,null,null,0,null,null,0,null,null,0,null,null,0,0," راسب  "]
[149,null,null,null,0,null,null,0,null,null,0,null,null,0,null,null,0,null,null,null,null,null,0,null,null,0,null,null,0,null,null,0,0," راسب  "]
[150,null,null,null,0,null,null,0,null,null,0,null,null,0,null,null,0,null,null,null,null,null,0,null,null,0,null,null,0,null,null,0,0," راسب  "]
[151,null,null,null,0,null,null,0,null,null,0,null,null,0,null,null,0,null,null,null,null,null,0,null,null,0,null,null,0,null,null,0,0," راسب  "]
[152,null,null,null,0,null,null,0,null,null,0,null,null,0,null,null,0,null,null,null,null,null,0,null,null,0,null,null,0,null,null,0,0," راسب  "]
[153,null,null,null,0,null,null,0,null,null,0,null,null,0,null,null,0,null,null,null,null,null,0,null,null,0,null,null,0,null,null,0,0," راسب  "]
[154,null,null,null,0,null,null,0,null,null,0,null,null,0,null,null,0,null,null,null,null,null,0,null,null,0,null,null,0,null,null,0,0," راسب  "]
[155,null,null,null,0,null,null,0,null,null,0,null,null,0,null,null,0,null,null,null,null,null,0,null,null,0,null,null,0,null,null,0,0," راسب  "]
[156,null,null,null,0,null,null,0,null,null,0,null,null,0,null,null,0,null,null,null,null,null,0,null,null,0,null,null,0,null,null,0,0," راسب  "]
[157,null,null,null,0,null,null,0,null,null,0,null,null,0,null,null,0,null,null,null,null,null,0,null,null,0,null,null,0,null,null,0,0," راسب  "]
[158,null,null,null,0,null,null,0,null,null,0,null,null,0,null,null,0,null,null,null,null,null,0,null,null,0,null,null,0,null,null,0,0," راسب  "]
[159,null,null,null,0,null,null,0,null,null,0,null,null,0,null,null,0,null,null,null,null,null,0,null,null,0,null,null,0,null,null,0,0," راسب  "]
[160,null,null,null,0,null,null,0,null,null,0,null,null,0,null,null,0,null,null,null,null,null,0,null,null,0,null,null,0,null,null,0,0," راسب  "]
[161,null,null,null,0,null,null,0,null,null,0,null,null,0,null,null,0,null,null,null,null,null,0,null,null,0,null,null,0,null,null,0,0," راسب  "]
[162,null,null,null,0,null,null,0,null,null,0,null,null,0,null,null,0,null,null,null,null,null,0,null,null,0,null,null,0,null,null,0,0," راسب  "]
[163,null,null,null,0,null,null,0,null,null,0,null,null,0,null,null,0,null,null,null,null,null,0,null,null,0,null,null,0,null,null,0,0," راسب  "]
[164,null,null,null,0,null,null,0,null,null,0,null,null,0,null,null,0,null,null,null,null,null,0,null,null,0,null,null,0,null,null,0,0," راسب  "]
[165,null,null,null,0,null,null,0,null,null,0,null,null,0,null,null,0,null,null,null,null,null,0,null,null,0,null,null,0,null,null,0,0," راسب  "]
[166,null,null,null,0,null,null,0,null,null,0,null,null,0,null,null,0,null,null,null,null,null,0,null,null,0,null,null,0,null,null,0,0," راسب  "]
[167,null,null,null,0,null,null,0,null,null,0,null,null,0,null,null,0,null,null,null,null,null,0,null,null,0,null,null,0,null,null,0,0," راسب  "]
[168,null,null,null,0,null,null,0,null,null,0,null,null,0,null,null,0,null,null,null,null,null,0,null,null,0,null,null,0,null,null,0,0," راسب  "]
[169,null,null,null,0,null,null,0,null,null,0,null,null,0,null,null,0,null,null,null,null,null,0,null,null,0,null,null,0,null,null,0,0," راسب  "]
[170,null,null,null,0,null,null,0,null,null,0,null,null,0,null,null,0,null,null,null,null,null,0,null,null,0,null,null,0,null,null,0,0," راسب  "]
[171,null,null,null,0,null,null,0,null,null,0,null,null,0,null,null,0,null,null,null,null,null,0,null,null,0,null,null,0,null,null,0,0," راسب  "]
[172,null,null,null,0,null,null,0,null,null,0,null,null,0,null,null,0,null,null,null,null,null,0,null,null,0,null,null,0,null,null,0,0," راسب  "]
[173,null,null,null,0,null,null,0,null,null,0,null,null,0,null,null,0,null,null,null,null,null,0,null,null,0,null,null,0,null,null,0,0," راسب  "]
[174,null,null,null,0,null,null,0,null,null,0,null,null,0,null,null,0,null,null,null,null,null,0,null,null,0,null,null,0,null,null,0,0," راسب  "]
[175,null,null,null,0,null,null,0,null,null,0,null,null,0,null,null,0,null,null,null,null,null,0,null,null,0,null,null,0,null,null,0,0," راسب  "]
[176,null,null,null,0,null,null,0,null,null,0,null,null,0,null,null,0,null,null,null,null,null,0,null,null,0,null,null,0,null,null,0,0," راسب  "]
[177,null,null,null,0,null,null,0,null,null,0,null,null,0,null,null,0,null,null,null,null,null,0,null,null,0,null,null,0,null,null,0,0," راسب  "]
[178,null,null,null,0,null,null,0,null,null,0,null,null,0,null,null,0,null,null,null,null,null,0,null,null,0,null,null,0,null,null,0,0," راسب  "]
[179,null,null,null,0,null,null,0,null,null,0,null,null,0,null,null,0,null,null,null,null,null,0,null,null,0,null,null,0,null,null,0,0," راسب  "]
[180,null,null,null,0,null,null,0,null,null,0,null,null,0,null,null,0,null,null,null,null,null,0,null,null,0,null,null,0,null,null,0,0," راسب  "]
[181,null,null,null,0,null,null,0,null,null,0,null,null,0,null,null,0,null,null,null,null,null,0,null,null,0,null,null,0,null,null,0,0," راسب  "]
[182,null,null,null,0,null,null,0,null,null,0,null,null,0,null,null,0,null,null,null,null,null,0,null,null,0,null,null,0,null,null,0,0," راسب  "]
[183,null,null,null,0,null,null,0,null,null,0,null,null,0,null,null,0,null,null,null,null,null,0,null,null,0,null,null,0,null,null,0,0," راسب  "]
[184,null,null,null,0,null,null,0,null,null,0,null,null,0,null,null,0,null,null,null,null,null,0,null,null,0,null,null,0,null,null,0,0," راسب  "]
[185,null,null,null,0,null,null,0,null,null,0,null,null,0,null,null,0,null,null,null,null,null,0,null,null,0,null,null,0,null,null,0,0," راسب  "]
[186,null,null,null,0,null,null,0,null,null,0,null,null,0,null,null,0,null,null,null,null,null,0,null,null,0,null,null,0,null,null,0,0," راسب  "]
[187,null,null,null,0,null,null,0,null,null,0,null,null,0,null,null,0,null,null,null,null,null,0,null,null,0,null,null,0,null,null,0,0," راسب  "]
[188,null,null,null,0,null,null,0,null,null,0,null,null,0,null,null,0,null,null,null,null,null,0,null,null,0,null,null,0,null,null,0,0," راسب  "]
[189,null,null,null,0,null,null,0,null,null,0,null,null,0,null,null,0,null,null,null,null,null,0,null,null,0,null,null,0,null,null,0,0," راسب  "]
[190,null,null,null,0,null,null,0,null,null,0,null,null,0,null,null,0,null,null,null,null,null,0,null,null,0,null,null,0,null,null,0,0," راسب  "]
[191,null,null,null,0,null,null,0,null,null,0,null,null,0,null,null,0,null,null,null,null,null,0,null,null,0,null,null,0,null,null,0,0," راسب  "]
[192,null,null,null,0,null,null,0,null,null,0,null,null,0,null,null,0,null,null,null,null,null,0,null,null,0,null,null,0,null,null,0,0," راسب  "]
[193,null,null,null,{"$f":"C205+D205","v":0},null,null,{"$f":"F205+G205","v":0},null,null,{"$f":"I205+J205","v":0},null,null,{"$f":"L205+M205","v":0},null,null,{"$f":"O205+P205","v":0},null,null,null,null,null,{"$f":"U205+V205","v":0},null,null,{"$f":"X205+Y205","v":0},null,null,{"$f":"AA205+AB205","v":0},null,null,{"$f":"AD205+AE205","v":0},0," راسب  "]
[194,null,null,null,0,null,null,0,null,null,0,null,null,0,null,null,0,null,null,null,null,null,0,null,null,0,null,null,0,null,null,0,{"$f":"E206+H206+K206+N206+Q206+W206+AC206+AF206","v":0},{"$f":"IF(AND(E206>=50,H206>=50,K206>=50,N206>=50,Q206>=50,W206>=50,AC206>=50,AF206>=50),\" ناجح\",\" راسب  \")","v":" راسب  "}]
[195,null,null,null,0,null,null,0,null,null,0,null,null,0,null,null,0,null,null,null,null,null,0,null,null,0,null,null,0,null,null,0,0," راسب  "]
[196,null,null,null,0,null,null,0,null,null,0,null,null,0,null,null,0,null,null,null,null,null,0,null,null,0,null,null,0,null,null,0,0," راسب  "]
[197,null,null,null,0,null,null,0,null,null,0,null,null,0,null,null,0,null,null,null,null,null,0,null,null,0,null,null,0,null,null,0,0," راسب  "]
[198,null,null,null,0,null,null,0,null,null,0,null,null,0,null,null,0,null,null,null,null,null,0,null,null,0,null,null,0,null,null,0,0," راسب  "]
[199,null,null,null,0,null,null,0,null,null,0,null,null,0,null,null,0,null,null,null,null,null,0,null,null,0,null,null,0,null,null,0,0," راسب  "]
[200,null,null,null,0,null,null,0,null,null,0,null,null,0,null,null,0,null,null,null,null,null,0,null,null,0,null,null,0,null,null,0,0," راسب  "]